fUST/lending_fUST_20240414
["ID","MTS","AMOUNT","RATE_DAILY","PERIOD"]
[322542864,1713043847917,-500.0,0.0009863,120]
[322542866,1713043847926,-500.0,0.0009863,120]
[322542868,1713043847936,-500.0,0.0009863,120]
[322542870,1713043847945,-500.0,0.0009863,120]
[322542872,1713043847954,-500.0,0.0009863,120]
[322542874,1713043847963,-500.0,0.0009863,120]
[322542876,1713043847972,-500.0,0.0009863,120]
[322542878,1713043847982,-500.0,0.0009863,60]
[322542880,1713043847991,-500.0,0.0009863,120]
[322542882,1713043848000,-500.0,0.0009863,120]
[322542884,1713043848009,-500.0,0.0009863,120]
[322542886,1713043848018,-500.0,0.0009863,120]
[322542888,1713043848029,-300.0,0.0009863,7]
[322542890,1713043848038,-500.0,0.0009863,120]
[322542892,1713043848051,-500.0,0.0009863,120]
[322542894,1713043848060,-500.0,0.0009863,120]
[322542896,1713043848069,-500.0,0.0009863,120]
[322542898,1713043848079,-697.04,0.0009863,120]
[322542899,1713043848089,-500.0,0.0009863,120]
[322542901,1713043848098,-500.0,0.0009863,120]
[322542904,1713043848108,-500.0,0.0009863,120]
[322542905,1713043848118,-2363.12,0.0009863,120]
[322542907,1713043848127,-500.0,0.0009863,120]
[322542909,1713043848137,-500.0,0.0009863,120]
[322542911,1713043848146,-500.0,0.0009863,120]
[322542913,1713043848157,-500.0,0.0009863,120]
[322542915,1713043848167,-500.0,0.0009863,120]
[322542917,1713043848177,-500.0,0.0009863,120]
[322542919,1713043848187,-500.0,0.0009863,120]
[322542921,1713043848196,-2418.31,0.0009863,120]
[322542923,1713043848206,-500.0,0.0009863,120]
[322542924,1713043848216,-926.67,0.0009863,120]
[322542926,1713043848225,-500.0,0.0009863,120]
[322542928,1713043848235,-500.0,0.0009863,120]
[322542930,1713043848245,-500.0,0.0009863,120]
[322542932,1713043848256,-500.0,0.0009863,120]
[322542934,1713043848266,-500.0,0.0009863,120]
[322542936,1713043848278,-501.63042436,0.0009863,120]
[322542938,1713043848288,-500.0,0.0009863,120]
[322542940,1713043848300,-683.0,0.0009863,120]
[322542942,1713043848310,-500.0,0.0009863,120]
[322542944,1713043848321,-500.0,0.0009863,120]
[322542946,1713043848333,-500.0,0.0009863,120]
[322542948,1713043848346,-552.43443528,0.0009863,120]
[322542950,1713043848356,-500.0,0.0009863,120]
[322542952,1713043848366,-878.89,0.0009863,120]
[322542954,1713043848377,-500.0,0.0009863,120]
[322542956,1713043848389,-500.0,0.0009863,120]
[322542959,1713043848399,-500.0,0.0009863,120]
[322542961,1713043848410,-500.0,0.0009863,120]
[322542962,1713043848424,-500.0,0.0009863,120]
[322542964,1713043848437,-500.0,0.0009863,120]
[322542967,1713043848447,-500.0,0.0009863,120]
[322542968,1713043848457,-500.0,0.0009863,120]
[322542970,1713043848467,-500.0,0.0009863,120]
[322542978,1713043848538,-500.0,0.0009863,120]
[322542980,1713043848550,-500.0,0.0009863,120]
[322542982,1713043848561,-500.0,0.0009863,120]
[322542984,1713043848571,-514.74964977,0.0009863,120]
[322542986,1713043848581,-500.0,0.0009863,120]
[322542988,1713043848591,-500.0,0.0009863,120]
[322542990,1713043848600,-500.0,0.0009863,120]
[322542991,1713043848610,-536.32,0.0009863,120]
[322542994,1713043848621,-500.0,0.0009863,120]
[322542996,1713043848631,-500.0,0.0009863,120]
[322542997,1713043848640,-274.93013779,0.0009863,120]
[322542999,1713043848650,-1153.96,0.0009863,120]
[322543001,1713043848660,-500.0,0.0009863,120]
[322543003,1713043848669,-500.0,0.0009863,120]
[322543005,1713043848678,-254.90994942,0.0009863,120]
[322543007,1713043848688,-500.0,0.0009863,120]
[322543009,1713043848697,-500.0,0.0009863,120]
[322543011,1713043848707,-411.91497699,0.0009863,120]
[322543013,1713043848717,-460.78762985,0.0009863,120]
[322543015,1713043848726,-500.0,0.0009863,120]
[322543017,1713043848736,-500.0,0.0009863,120]
[322543019,1713043848745,-500.0,0.0009863,120]
[322543021,1713043848755,-500.0,0.0009863,120]
[322543023,1713043848765,-500.0,0.0009863,120]
[322543025,1713043848774,-503.40471124,0.0009863,120]
[322543027,1713043848784,-500.0,0.0009863,120]
[322543030,1713043848794,-560.14044465,0.0009863,120]
[322543031,1713043848806,-500.0,0.0009863,120]
[322543033,1713043848816,-500.0,0.0009863,120]
[322543036,1713043848826,-500.0,0.0009863,120]
[322543037,1713043848835,-621.06,0.0009863,120]
[322543039,1713043848844,-500.0,0.0009863,120]
[322543041,1713043848854,-500.0,0.0009863,120]
[322543043,1713043848863,-365.15564107,0.0009863,120]
[322543045,1713043848872,-500.0,0.0009863,120]
[322543047,1713043848881,-500.0,0.0009863,120]
[322543049,1713043848891,-500.0,0.0009863,120]
[322543051,1713043848900,-223.56870691,0.0009863,120]
[322543053,1713043848910,-500.0,0.0009863,120]
[322543055,1713043848920,-500.0,0.0009863,120]
[322543056,1713043848930,-264.46955695,0.0009863,120]
[322543058,1713043848941,-500.0,0.0009863,120]
[322543060,1713043848951,-500.0,0.0009863,120]
[322543062,1713043848961,-500.0,0.0009863,120]
[322543064,1713043848971,-1092.55,0.0009863,120]
[322543066,1713043848981,-500.0,0.0009863,120]
[322543068,1713043848992,-500.0,0.0009863,120]
[322543070,1713043849002,-500.0,0.0009863,120]
[322543072,1713043849012,-500.0,0.0009863,120]
[322543074,1713043849022,-250.79776329,0.0009863,120]
[322543076,1713043849031,-512.89323581,0.0009863,120]
[322543078,1713043849041,-508.52306475,0.0009863,120]
[322543080,1713043849053,-500.0,0.0009863,120]
[322543082,1713043849063,-219.50666895,0.0009863,120]
[322543084,1713043849072,-212.44807141,0.0009863,120]
[322543086,1713043849082,-500.0,0.0009863,120]
[322543088,1713043849091,-500.0,0.0009863,120]
[322543090,1713043849100,-500.0,0.0009863,120]
[322543091,1713043849110,-500.0,0.0009863,120]
[322543093,1713043849119,-500.0,0.0009863,120]
[322543095,1713043849128,-500.0,0.0009863,120]
[322543097,1713043849138,-1486.08,0.0009863,120]
[322543099,1713043849147,-500.0,0.0009863,120]
[322543101,1713043849156,-500.0,0.0009863,120]
[322543103,1713043849165,-748.04,0.0009863,120]
[322543105,1713043849174,-500.0,0.0009863,120]
[322543107,1713043849183,-426.30325555,0.0009863,120]
[322543109,1713043849192,-284.82608715,0.0009863,120]
[322543111,1713043849202,-500.0,0.0009863,120]
[322543113,1713043849211,-179.15557247,0.0009863,120]
[322543115,1713043849220,-500.0,0.0009863,120]
[322543117,1713043849229,-500.0,0.0009863,120]
[322543119,1713043849239,-1388.41,0.0009863,120]
[322543121,1713043849248,-500.0,0.0009863,120]
[322543123,1713043849257,-927.78,0.0009863,120]
[322543125,1713043849267,-500.0,0.0009863,120]
[322543127,1713043849276,-2500.0,0.0009863,120]
[322543129,1713043849286,-2422.8,0.0009863,120]
[322543131,1713043849296,-1655.3,0.0009863,120]
[322543133,1713043849308,-500.0,0.0009863,120]
[322543135,1713043849318,-1725.76,0.0009863,120]
[322543137,1713043849327,-500.0,0.0009863,120]
[322543139,1713043849336,-500.0,0.0009863,120]
[322543141,1713043849345,-500.0,0.0009863,120]
[322543142,1713043849354,-500.0,0.0009863,120]
[322543144,1713043849363,-4867.75,0.0009863,120]
[322543146,1713043849372,-515.14008533,0.0009863,7]
[322543148,1713043849384,-2875.53,0.0009863,120]
[322543150,1713043849394,-525.14200197,0.0009863,120]
[322543152,1713043849404,-501.43023592,0.0009863,120]
[322543154,1713043849412,-632.13,0.0009863,120]
[322543156,1713043849423,-857.91,0.0009863,120]
[322543158,1713043849436,-500.0,0.0009863,120]
[322543160,1713043849445,-500.0,0.0009863,120]
[322543162,1713043849455,-500.0,0.0009863,120]
[322543164,1713043849464,-343.83564179,0.0009863,120]
[322543166,1713043849473,-796.34,0.0009863,120]
[322543167,1713043849483,-500.0,0.0009863,120]
[322543168,1713043849492,-500.0,0.0009863,120]
[322543169,1713043849502,-594.82992767,0.0009863,120]
[322543170,1713043849512,-517.75421811,0.0009863,120]
[322543171,1713043849522,-543.36,0.0009863,120]
[322543172,1713043849532,-694.23,0.0009863,120]
[322543173,1713043849542,-500.0,0.0009863,120]
[322543174,1713043849556,-500.0,0.0009863,120]
[322543175,1713043849566,-500.0,0.0009863,120]
[322543176,1713043849576,-2066.69,0.0009863,120]
[322543177,1713043849586,-500.0,0.0009863,120]
[322543178,1713043849596,-834.43,0.0009863,120]
[322543179,1713043849610,-500.0,0.0009863,60]
[322543180,1713043849621,-500.0,0.0009863,120]
[322543181,1713043849630,-500.0,0.0009863,120]
[322543182,1713043849696,-500.0,0.0009863,120]
[322543183,1713043849706,-500.0,0.0009863,120]
[322543184,1713043849715,-951.32,0.0009863,120]
[322543185,1713043849724,-637.2685429,0.0009863,120]
[322543187,1713043849734,-2480.12,0.0009863,120]
[322543189,1713043849743,-500.0,0.0009863,120]
[322543191,1713043849753,-500.0,0.0009863,120]
[322543193,1713043849762,-682.83,0.0009863,120]
[322543195,1713043849771,-500.0,0.0009863,120]
[322543197,1713043849780,-500.0,0.0009863,120]
[322543199,1713043849789,-517.00952619,0.0009863,120]
[322543201,1713043849800,-500.0,0.0009863,120]
[322543203,1713043849810,-500.0,0.0009863,120]
[322543205,1713043849820,-500.0,0.0009863,120]
[322543207,1713043849830,-528.67681936,0.0009863,120]
[322543209,1713043849839,-1897.13,0.0009863,120]
[322543210,1713043849848,-500.0,0.0009863,120]
[322543212,1713043849857,-500.0,0.0009863,120]
[322543214,1713043849867,-500.0,0.0009863,120]
[322543216,1713043849876,-500.0,0.0009863,120]
[322543218,1713043849885,-1110.65,0.0009863,120]
[322543220,1713043849895,-500.0,0.0009863,120]
[322543222,1713043849904,-500.0,0.0009863,120]
[322543224,1713043849914,-892.88,0.0009863,120]
[322543226,1713043849924,-612.97,0.0009863,120]
[322543228,1713043849934,-500.0,0.0009863,120]
[322543230,1713043849943,-500.0,0.0009863,120]
[322543232,1713043849953,-538.12,0.0009863,120]
[322543234,1713043849962,-24405.4,0.0009863,120]
[322543236,1713043849972,-500.0,0.0009863,120]
[322543238,1713043849982,-500.0,0.0009863,120]
[322543240,1713043849991,-927.66,0.0009863,120]
[322543242,1713043850000,-7531.75,0.0009863,120]
[322543244,1713043850010,-500.0,0.0009863,120]
[322543246,1713043850019,-500.0,0.0009863,120]
[322543248,1713043850029,-500.0,0.0009863,120]
[322543249,1713043850038,-1956.19,0.0009863,21]
[322543252,1713043850051,-821.14,0.0009863,120]
[322543254,1713043850062,-500.0,0.0009863,120]
[322543256,1713043850072,-1208.76,0.0009863,2]
[322543258,1713043850083,-500.0,0.0009863,120]
[322543260,1713043850093,-521.08070212,0.0009863,120]
[322543261,1713043850102,-500.0,0.0009863,120]
[322543263,1713043850111,-2913.78,0.0009863,120]
[322543265,1713043850120,-8028.21109,0.00098765,120]
[322543267,1713043850129,-2137.99027971,0.000989,120]
[322543280,1713043850244,-730.00972029,0.000989,120]
[322543281,1713043850255,-3448.60439728,0.00099851,120]
[322543283,1713043850265,-22786.553136,0.000999,120]
[322543316,1713043850607,-15306.25,0.000999,120]
[322543321,1713043850659,-291.94,0.000999,120]
[322543400,1713043851454,-1014.05805107,0.00037655,4]
[322543402,1713043851464,-505.45,0.00054794,120]
[322543404,1713043851478,-200.44017767,0.00054794,120]
[322543405,1713043851489,-500.0,0.00054794,120]
[322543407,1713043851501,-505.45,0.00076712,120]
[322543409,1713043851513,-505.45,0.0009863,120]
[322543412,1713043851524,-52426.05177126,0.000999,120]
[322543414,1713043851537,-1414.39778531,0.000999,120]
[322543436,1713043851752,-310.4,0.00044999,7]
[322543439,1713043851773,-189.6,0.00044999,7]
[322543441,1713043851782,-500.0,0.00044999,7]
[322543443,1713043851793,-1409.86821614,0.00054246,30]
[322543445,1713043851806,-500.0,0.00054794,120]
[322543447,1713043851817,-500.0,0.00054794,120]
[322543449,1713043851826,-325.68165112,0.00054794,120]
[322543457,1713043851890,-153.0,0.000548,2]
[322543459,1713043851899,-500.0,0.00076712,120]
[322543461,1713043851908,-500.0,0.00076712,120]
[322543462,1713043851919,-123759.95830743,0.000999,120]
[322543465,1713043851929,-300.0,0.001,120]
[322543467,1713043851939,-169.199833,0.00100457,120]
[322543469,1713043851948,-3448.60439728,0.00100935,120]
[322543471,1713043851958,-3448.60439728,0.00102019,120]
[322543472,1713043851968,-3448.60439728,0.00103103,120]
[322543475,1713043851979,-3448.60439728,0.00104187,120]
[322543476,1713043851989,-3448.60439728,0.00105271,120]
[322543478,1713043852000,-3448.60439728,0.00106355,120]
[322543481,1713043852011,-3448.60439728,0.00107439,120]
[322543483,1713043852021,-3448.60439728,0.00108523,120]
[322543484,1713043852032,-169.199833,0.00109589,120]
[322543486,1713043852042,-3448.60439728,0.00109607,120]
[322543488,1713043852056,-3448.60439728,0.00110691,120]
[322543490,1713043852066,-3448.60439728,0.00111775,120]
[322543492,1713043852077,-3448.60439728,0.00112859,120]
[322543494,1713043852086,-182.808124,0.00113494,120]
[322543496,1713043852096,-3448.60439728,0.00113943,120]
[322543498,1713043852106,-3448.60439728,0.00115027,120]
[322543500,1713043852116,-3448.60439728,0.00116111,120]
[322543502,1713043852127,-3448.60439728,0.00117195,120]
[322543504,1713043852138,-3448.60439728,0.00118279,120]
[322543506,1713043852148,-169.199833,0.00118721,120]
[322543508,1713043852158,-3448.60439728,0.00119363,120]
[322543510,1713043852167,-3449.1,0.00120447,120]
[322543512,1713043852178,-266.08054062,0.00120541,120]
[322543514,1713043852188,-156.84177265,0.00120542,14]
[322543516,1713043852198,-3726.45874665,0.00120542,14]
[322543518,1713043852207,-237.11999047,0.00120543,14]
[322543519,1713043852218,-1218.18721073,0.00120543,14]
[322543521,1713043852228,-593.43385429,0.00120543,30]
[322543523,1713043852238,-500.0,0.00120543,120]
[322543525,1713043852248,-500.0,0.00120543,120]
[322543527,1713043852259,-500.0,0.00120544,120]
[322543529,1713043852270,-500.0,0.00120544,120]
[322543532,1713043852280,-506.58876071,0.00120544,120]
[322543533,1713043852290,-500.0,0.00120547,120]
[322543535,1713043852303,-277.43335445,0.00120547,120]
[322543538,1713043852313,-559.6,0.00120547,120]
[322543539,1713043852324,-630.98448967,0.00120547,120]
[322543542,1713043852334,-500.0,0.00120547,120]
[322543543,1713043852344,-539.26958734,0.00120547,120]
[322543545,1713043852354,-500.0,0.00120547,120]
[322543547,1713043852366,-500.0,0.00120547,120]
[322543548,1713043852376,-500.0,0.00120547,120]
[322543549,1713043852389,-500.0,0.00120547,120]
[322543550,1713043852399,-500.0,0.00120547,60]
[322543551,1713043852409,-500.0,0.00120547,120]
[322543552,1713043852419,-500.0,0.00120547,120]
[322543553,1713043852434,-500.0,0.00120547,120]
[322543554,1713043852443,-500.0,0.00120547,120]
[322543555,1713043852453,-500.0,0.00120547,120]
[322543556,1713043852461,-500.0,0.00120547,120]
[322543557,1713043852471,-500.0,0.00120547,120]
[322543558,1713043852481,-697.04,0.00120547,120]
[322543559,1713043852489,-500.0,0.00120547,120]
[322543560,1713043852498,-500.0,0.00120547,120]
[322543561,1713043852508,-500.0,0.00120547,120]
[322543562,1713043852518,-500.0,0.00120547,120]
[322543563,1713043852527,-199.06636884,0.00120547,120]
[322543564,1713043852536,-500.0,0.00120547,120]
[322543565,1713043852545,-500.0,0.00120547,120]
[322543567,1713043852558,-500.0,0.00120547,120]
[322543569,1713043852567,-2418.31,0.00120547,120]
[322543571,1713043852578,-500.0,0.00120547,120]
[322543573,1713043852587,-926.67,0.00120547,120]
[322543575,1713043852597,-500.0,0.00120547,120]
[322543577,1713043852611,-500.0,0.00120547,120]
[322543579,1713043852622,-500.0,0.00120547,120]
[322543581,1713043852631,-500.0,0.00120547,120]
[322543583,1713043852640,-500.0,0.00120547,120]
[322543585,1713043852649,-500.0,0.00120547,120]
[322543587,1713043852658,-683.0,0.00120547,120]
[322543589,1713043852667,-500.0,0.00120547,120]
[322543591,1713043852676,-500.0,0.00120547,120]
[322543593,1713043852686,-500.0,0.00120547,120]
[322543595,1713043852695,-263.05878435,0.00120547,120]
[322543597,1713043852704,-878.89,0.00120547,120]
[322543599,1713043852714,-500.0,0.00120547,120]
[322543601,1713043852723,-500.0,0.00120547,120]
[322543603,1713043852732,-500.0,0.00120547,120]
[322543605,1713043852741,-500.0,0.00120547,120]
[322543607,1713043852750,-500.0,0.00120547,120]
[322543609,1713043852759,-500.0,0.00120547,120]
[322543611,1713043852768,-500.0,0.00120547,120]
[322543613,1713043852778,-500.0,0.00120547,120]
[322543615,1713043852787,-500.0,0.00120547,120]
[322543617,1713043852797,-637.09408538,0.00120547,120]
[322543619,1713043852810,-500.0,0.00120547,120]
[322543621,1713043852819,-648.23236832,0.00120547,120]
[322543623,1713043852829,-504.20478867,0.00120547,120]
[322543625,1713043852838,-500.0,0.00120547,120]
[322543627,1713043852847,-536.32,0.00120547,120]
[322543630,1713043852856,-500.0,0.00120547,120]
[322543637,1713043852923,-1153.96,0.00120547,120]
[322543639,1713043852933,-500.0,0.00120547,120]
[322543640,1713043852942,-500.0,0.00120547,120]
[322543643,1713043852953,-500.0,0.00120547,120]
[322543645,1713043852962,-500.0,0.00120547,120]
[322543647,1713043852972,-500.0,0.00120547,120]
[322543648,1713043852982,-500.0,0.00120547,120]
[322543650,1713043852991,-500.0,0.00120547,120]
[322543652,1713043853002,-500.0,0.00120547,120]
[322543654,1713043853011,-500.0,0.00120547,120]
[322543656,1713043853020,-500.0,0.00120547,120]
[322543658,1713043853030,-500.0,0.00120547,120]
[322543661,1713043853039,-500.0,0.00120547,120]
[322543662,1713043853048,-621.06,0.00120547,120]
[322543664,1713043853065,-500.0,0.00120547,120]
[322543666,1713043853075,-500.0,0.00120547,120]
[322543669,1713043853085,-294.98870105,0.00120547,120]
[322543671,1713043853094,-500.0,0.00120547,120]
[322543673,1713043853103,-500.0,0.00120547,120]
[322543674,1713043853112,-500.0,0.00120547,120]
[322543676,1713043853122,-500.0,0.00120547,120]
[322543678,1713043853131,-500.0,0.00120547,120]
[322543680,1713043853140,-500.0,0.00120547,120]
[322543682,1713043853149,-500.0,0.00120547,120]
[322543684,1713043853158,-1092.55,0.00120547,120]
[322543686,1713043853167,-499.30594782,0.00120547,120]
[322543688,1713043853177,-500.0,0.00120547,120]
[322543690,1713043853186,-500.0,0.00120547,120]
[322543692,1713043853196,-508.86278063,0.00120547,120]
[322543694,1713043853206,-500.0,0.00120547,120]
[322543696,1713043853215,-500.0,0.00120547,120]
[322543699,1713043853225,-500.0,0.00120547,120]
[322543700,1713043853234,-500.0,0.00120547,120]
[322543702,1713043853244,-500.0,0.00120547,120]
[322543705,1713043853253,-1486.08,0.00120547,120]
[322543707,1713043853263,-500.0,0.00120547,120]
[322543709,1713043853272,-580.57299938,0.00120547,120]
[322543711,1713043853281,-748.04,0.00120547,120]
[322543712,1713043853291,-500.0,0.00120547,120]
[322543714,1713043853304,-500.0,0.00120547,120]
[322543716,1713043853312,-500.0,0.00120547,120]
[322543718,1713043853321,-500.0,0.00120547,120]
[322543720,1713043853330,-1388.41,0.00120547,120]
[322543722,1713043853340,-500.0,0.00120547,120]
[322543724,1713043853349,-927.78,0.00120547,120]
[322543726,1713043853358,-500.0,0.00120547,120]
[322543728,1713043853367,-2500.0,0.00120547,120]
[322543730,1713043853376,-2422.8,0.00120547,120]
[322543732,1713043853388,-1655.3,0.00120547,120]
[322543734,1713043853398,-515.87237005,0.00120547,120]
[322543736,1713043853407,-1725.76,0.00120547,120]
[322543739,1713043853418,-500.0,0.00120547,120]
[322543740,1713043853431,-500.0,0.00120547,120]
[322543742,1713043853440,-500.0,0.00120547,120]
[322543744,1713043853450,-500.0,0.00120547,120]
[322543746,1713043853460,-4867.75,0.00120547,120]
[322543748,1713043853470,-2875.53,0.00120547,120]
[322543750,1713043853479,-632.13,0.00120547,120]
[322543752,1713043853488,-857.91,0.00120547,120]
[322543754,1713043853499,-500.0,0.00120547,120]
[322543756,1713043853509,-500.0,0.00120547,120]
[322543758,1713043853518,-500.0,0.00120547,120]
[322543760,1713043853529,-796.34,0.00120547,120]
[322543763,1713043853539,-500.0,0.00120547,120]
[322543764,1713043853549,-500.0,0.00120547,120]
[322543767,1713043853562,-543.36,0.00120547,120]
[322543769,1713043853571,-694.23,0.00120547,120]
[322543771,1713043853580,-500.0,0.00120547,120]
[322543772,1713043853590,-347.05147228,0.00120547,120]
[322543775,1713043853599,-500.0,0.00120547,120]
[322543776,1713043853608,-2066.69,0.00120547,120]
[322543778,1713043853618,-500.0,0.00120547,120]
[322543780,1713043853627,-834.43,0.00120547,120]
[322543782,1713043853636,-500.0,0.00120547,60]
[322543784,1713043853646,-500.0,0.00120547,120]
[322543786,1713043853656,-453.65434106,0.00120547,120]
[322543789,1713043853666,-500.0,0.00120547,120]
[322543790,1713043853675,-500.0,0.00120547,120]
[322543792,1713043853684,-951.32,0.00120547,120]
[322543794,1713043853694,-2480.12,0.00120547,120]
[322543795,1713043853703,-500.0,0.00120547,120]
[322543797,1713043853712,-500.0,0.00120547,120]
[322543798,1713043853722,-682.83,0.00120547,120]
[322543800,1713043853731,-500.0,0.00120547,120]
[322543801,1713043853740,-500.0,0.00120547,120]
[322543803,1713043853750,-500.0,0.00120547,120]
[322543804,1713043853759,-500.0,0.00120547,120]
[322543806,1713043853768,-500.0,0.00120547,120]
[322543810,1713043853778,-1897.13,0.00120547,120]
[322543811,1713043853836,-504.50110514,0.00120547,120]
[322543813,1713043853846,-500.0,0.00120547,120]
[322543814,1713043853855,-500.0,0.00120547,120]
[322543816,1713043853863,-500.0,0.00120547,120]
[322543817,1713043853872,-1110.65,0.00120547,120]
[322543819,1713043853881,-500.0,0.00120547,120]
[322543820,1713043853889,-504.2554637,0.00120547,120]
[322543822,1713043853898,-892.88,0.00120547,120]
[322543823,1713043853907,-612.97,0.00120547,120]
[322543825,1713043853916,-500.0,0.00120547,120]
[322543826,1713043853925,-500.0,0.00120547,120]
[322543828,1713043853934,-538.12,0.00120547,120]
[322543829,1713043853943,-24405.4,0.00120547,120]
[322543831,1713043853956,-500.0,0.00120547,120]
[322543833,1713043853966,-927.66,0.00120547,120]
[322543834,1713043853975,-7531.75,0.00120547,120]
[322543836,1713043853984,-500.0,0.00120547,120]
[322543838,1713043853993,-500.0,0.00120547,120]
[322543839,1713043854002,-500.0,0.00120547,120]
[322543841,1713043854011,-1956.19,0.00120547,21]
[322543842,1713043854020,-821.14,0.00120547,120]
[322543844,1713043854029,-500.0,0.00120547,120]
[322543846,1713043854039,-1208.76,0.00120547,2]
[322543847,1713043854048,-500.0,0.00120547,120]
[322543849,1713043854060,-500.0,0.00120547,120]
[322543850,1713043854069,-2913.78,0.00120547,120]
[322543852,1713043854078,-505.45,0.00120547,120]
[322543854,1713043854088,-150.0,0.00121541,120]
[322543855,1713043854098,-150.0,0.00122541,120]
[322543857,1713043854108,-169.199833,0.00127854,120]
[322543858,1713043854117,-10000.0,0.001314,120]
[322543860,1713043854126,-169.199833,0.00136986,120]
[322543862,1713043854135,-200.20792,0.00136986,120]
[322543863,1713043854144,-171.0,0.00139,120]
[322543865,1713043854153,-171.0,0.00139178,120]
[322543866,1713043854162,-52460.1531195,0.0014,120]
[322543868,1713043854171,-182.808124,0.00140343,120]
[322543869,1713043854180,-181.03706664,0.00141783,4]
[322543871,1713043854189,-400.0,0.00141987,120]
[322543872,1713043854199,-500.0,0.00142461,120]
[322543875,1713043854219,-500.0,0.00142462,120]
[322543877,1713043854236,-500.0,0.00142462,120]
[322543879,1713043854255,-484.4558624,0.00142464,30]
[322543882,1713043854276,-622.62751481,0.00142465,120]
[322543883,1713043854292,-559.6,0.00142465,120]
[322543884,1713043854312,-500.0,0.00142465,120]
[322543885,1713043854329,-500.0,0.00142465,120]
[322543886,1713043854347,-500.0,0.00142465,120]
[322543887,1713043854364,-500.0,0.00142465,120]
[322543888,1713043854384,-500.0,0.00142465,60]
[322543889,1713043854407,-500.0,0.00142465,120]
[322543890,1713043854424,-500.0,0.00142465,120]
[322543891,1713043854437,-596.73271941,0.00142465,120]
[322543892,1713043854453,-213.10858138,0.00142465,120]
[322543893,1713043854468,-500.0,0.00142465,120]
[322543894,1713043854482,-500.0,0.00142465,120]
[322543895,1713043854499,-500.0,0.00142465,120]
[322543896,1713043854514,-697.04,0.00142465,120]
[322543897,1713043854529,-500.0,0.00142465,120]
[322543898,1713043854544,-500.0,0.00142465,120]
[322543899,1713043854559,-435.8258126,0.00142465,120]
[322543900,1713043854574,-500.0,0.00142465,120]
[322543901,1713043854588,-500.0,0.00142465,120]
[322543902,1713043854602,-494.34753462,0.00142465,120]
[322543903,1713043854617,-500.0,0.00142465,120]
[322543904,1713043854631,-2418.31,0.00142465,120]
[322543905,1713043854645,-500.0,0.00142465,120]
[322543906,1713043854659,-926.67,0.00142465,120]
[322543907,1713043854669,-500.0,0.00142465,120]
[322543908,1713043854678,-500.0,0.00142465,120]
[322543909,1713043854687,-500.0,0.00142465,120]
[322543910,1713043854697,-500.0,0.00142465,120]
[322543911,1713043854707,-500.0,0.00142465,120]
[322543912,1713043854716,-500.0,0.00142465,120]
[322543913,1713043854726,-683.0,0.00142465,120]
[322543914,1713043854735,-500.0,0.00142465,120]
[322543915,1713043854745,-500.0,0.00142465,120]
[322543916,1713043854755,-349.91962565,0.00142465,120]
[322543917,1713043854764,-878.89,0.00142465,120]
[322543918,1713043854776,-500.0,0.00142465,120]
[322543919,1713043854785,-500.0,0.00142465,120]